[Event "Titled Tuesday Blitz December 13 Early 2022"]
[White "Hamley, Ryan"]
[Black "Zemlyanskii, Ivan"]
[WhiteFideId "30959497"]
[BlackFideId "24249971"]
[WhiteElo "2605"]
[BlackElo "2107"]
[Result "1-0"]
[Round "05"]
[TimeControl "180+1"]
[Date "2022.12.14"]
[WhiteClock "0:00:09"]
[BlackClock "0:00:03"]

1. e4 {[%clk 0:02:53]}  c5 {[%clk 0:02:59]} 2. Nf3 {[%clk 0:02:52]}  d6 {[%clk 0:02:58]} 3. Bb5+ {[%clk 0:02:51]}  Nd7 {[%clk 0:02:57]} 4. O-O {[%clk 0:02:50]}  a6 {[%clk 0:02:53]} 5. Bd3 {[%clk 0:02:48]}  Ngf6 {[%clk 0:02:52]} 6. c3 {[%clk 0:02:48]}  b5 {[%clk 0:02:46]} 7. Bc2 {[%clk 0:02:47]}  Bb7 {[%clk 0:02:46]} 8. Re1 {[%clk 0:02:46]}  e6 {[%clk 0:02:45]} 9. d4 {[%clk 0:02:45]}  Be7 {[%clk 0:02:41]} 10. Nbd2 {[%clk 0:02:40]}  Qc7 {[%clk 0:02:41]} 11. Nf1 {[%clk 0:02:36]}  O-O-O {[%clk 0:02:40]} 12. a4 {[%clk 0:02:34]}  b4 {[%clk 0:02:28]} 13. cxb4 {[%clk 0:02:25]}  cxb4 {[%clk 0:02:10]} 14. a5 {[%clk 0:02:25]}  Kb8 {[%clk 0:02:10]} 15. Bd3 {[%clk 0:02:22]}  Rc8 {[%clk 0:01:52]} 16. Bf4 {[%clk 0:02:13]}  h6 {[%clk 0:01:45]} 17. Qe2 {[%clk 0:02:08]}  g5 {[%clk 0:01:42]} 18. Rec1 {[%clk 0:01:32]}  Qd8 {[%clk 0:01:36]} 19. Bd2 {[%clk 0:01:31]}  g4 {[%clk 0:01:28]} 20. Ne1 {[%clk 0:01:30]}  d5 {[%clk 0:01:22]} 21. e5 {[%clk 0:01:25]}  Ne4 {[%clk 0:01:23]} 22. Bxa6 {[%clk 0:01:24]}  Rxc1 {[%clk 0:01:13]} 23. Bxc1 {[%clk 0:01:17]}  Qc8 {[%clk 0:00:58]} 24. Bb5 {[%clk 0:01:11]}  Ka7 {[%clk 0:00:52]} 25. Be3 {[%clk 0:01:05]}  f5 {[%clk 0:00:50]} 26. exf6 {[%clk 0:01:04]}  Ndxf6 {[%clk 0:00:49]} 27. Nd3 {[%clk 0:01:04]}  Bd6 {[%clk 0:00:45]} 28. Ne5 {[%clk 0:01:03]}  Rf8 {[%clk 0:00:27]} 29. Rc1 {[%clk 0:00:54]}  Qd8 {[%clk 0:00:27]} 30. a6 {[%clk 0:00:54]}  Ba8 {[%clk 0:00:27]} 31. Nd2 {[%clk 0:00:47]}  Nxd2 {[%clk 0:00:24]} 32. Qxd2 {[%clk 0:00:48]}  Ne4 {[%clk 0:00:24]} 33. Qc2 {[%clk 0:00:47]}  Qb6 {[%clk 0:00:24]} 34. Bd3 {[%clk 0:00:39]}  Rf5 {[%clk 0:00:11]} 35. Nd7 {[%clk 0:00:36]}  Qd8 {[%clk 0:00:09]} 36. Bxe4 {[%clk 0:00:30]}  Qxd7 {[%clk 0:00:07]} 37. Bxf5 {[%clk 0:00:30]}  exf5 {[%clk 0:00:08]} 38. Qc8 {[%clk 0:00:22]}  Qe7 {[%clk 0:00:03]} 39. g3 {[%clk 0:00:13]}  f4 {[%clk 0:00:04]} 40. Bxf4 {[%clk 0:00:13]}  Bxf4 {[%clk 0:00:04]} 41. gxf4 {[%clk 0:00:14]}  Qe4 {[%clk 0:00:02]} 42. Qc5+ {[%clk 0:00:08]}  Kxa6 {[%clk 0:00:02]} 43. Ra1+ {[%clk 0:00:08]}  Kb7 {[%clk 0:00:02]} 44. Ra7+ {[%clk 0:00:08]}  Kb8 {[%clk 0:00:03]} 45. Qc7# {[%clk 0:00:09]} 1-0


[Site "https://www.chess.com"]

[Event "Titled Tuesday Blitz December 13 Early 2022"]
[White "Harshavardhan G B"]
[Black "Araujo Sanchez, Josue"]
[WhiteFideId "25059009"]
[BlackFideId "6416896"]
[WhiteElo "2757"]
[BlackElo "2557"]
[Result "0-1"]
[Round "05"]
[TimeControl "180+1"]
[Date "2022.12.14"]
[WhiteClock "0:00:14"]
[BlackClock "0:00:41"]

1. d4 {[%clk 0:02:53]}  Nf6 {[%clk 0:02:59]} 2. c4 {[%clk 0:02:51]}  e6 {[%clk 0:02:58]} 3. Nf3 {[%clk 0:02:50]}  d5 {[%clk 0:02:57]} 4. g3 {[%clk 0:02:48]}  dxc4 {[%clk 0:02:55]} 5. Bg2 {[%clk 0:02:48]}  Nc6 {[%clk 0:02:56]} 6. Qa4 {[%clk 0:02:45]}  Nd5 {[%clk 0:02:50]} 7. Qxc4 {[%clk 0:02:42]}  Nb6 {[%clk 0:02:48]} 8. Qd3 {[%clk 0:02:38]}  e5 {[%clk 0:02:34]} 9. Nxe5 {[%clk 0:02:29]}  Nxd4 {[%clk 0:02:23]} 10. Nc3 {[%clk 0:02:26]}  Bf5 {[%clk 0:02:15]} 11. Be4 {[%clk 0:02:24]}  Bxe4 {[%clk 0:02:09]} 12. Qxe4 {[%clk 0:02:21]}  f5 {[%clk 0:02:00]} 13. Qd3 {[%clk 0:02:02]}  g6 {[%clk 0:01:50]} 14. Be3 {[%clk 0:01:43]}  Ne6 {[%clk 0:01:47]} 15. Qb5+ {[%clk 0:01:36]}  c6 {[%clk 0:01:46]} 16. Qb3 {[%clk 0:01:36]}  Qf6 {[%clk 0:01:33]} 17. Nc4 {[%clk 0:01:21]}  Nc5 {[%clk 0:01:26]} 18. Bxc5 {[%clk 0:01:15]}  Bxc5 {[%clk 0:01:26]} 19. Nxb6 {[%clk 0:01:06]}  axb6 {[%clk 0:01:24]} 20. Na4 {[%clk 0:01:03]}  Qf7 {[%clk 0:01:10]} 21. Nxc5 {[%clk 0:01:02]}  bxc5 {[%clk 0:01:11]} 22. Qe3+ {[%clk 0:00:59]}  Qe7 {[%clk 0:01:07]} 23. Qb3 {[%clk 0:00:58]}  Qf7 {[%clk 0:01:07]} 24. Qe3+ {[%clk 0:00:55]}  Qe7 {[%clk 0:01:06]} 25. Qxe7+ {[%clk 0:00:50]}  Kxe7 {[%clk 0:01:06]} 26. e3 {[%clk 0:00:50]}  Rhd8 {[%clk 0:01:04]} 27. Ke2 {[%clk 0:00:49]}  c4 {[%clk 0:01:04]} 28. h4 {[%clk 0:00:38]}  b5 {[%clk 0:01:01]} 29. h5 {[%clk 0:00:37]}  g5 {[%clk 0:01:00]} 30. a3 {[%clk 0:00:35]}  Rd3 {[%clk 0:00:59]} 31. Rhd1 {[%clk 0:00:30]}  Rad8 {[%clk 0:00:59]} 32. Rxd3 {[%clk 0:00:21]}  Rxd3 {[%clk 0:01:00]} 33. Rc1 {[%clk 0:00:21]}  g4 {[%clk 0:00:58]} 34. Rc3 {[%clk 0:00:17]}  Rxc3 {[%clk 0:00:58]} 35. bxc3 {[%clk 0:00:18]}  Ke6 {[%clk 0:00:56]} 36. f3 {[%clk 0:00:17]}  Ke5 {[%clk 0:00:56]} 37. Kf2 {[%clk 0:00:14]}  c5 {[%clk 0:00:54]} 38. Ke2 {[%clk 0:00:14]}  gxf3+ {[%clk 0:00:50]} 39. Kxf3 {[%clk 0:00:13]}  h6 {[%clk 0:00:50]} 40. Kf2 {[%clk 0:00:13]}  Kf6 {[%clk 0:00:33]} 41. Kf3 {[%clk 0:00:12]}  Kg5 {[%clk 0:00:33]} 42. e4 {[%clk 0:00:11]}  fxe4+ {[%clk 0:00:34]} 43. Kxe4 {[%clk 0:00:12]}  Kxh5 {[%clk 0:00:35]} 44. Kd5 {[%clk 0:00:12]}  Kg4 {[%clk 0:00:36]} 45. Kxc5 {[%clk 0:00:12]}  Kxg3 {[%clk 0:00:37]} 46. Kxb5 {[%clk 0:00:13]}  h5 {[%clk 0:00:38]} 47. a4 {[%clk 0:00:13]}  h4 {[%clk 0:00:38]} 48. Kxc4 {[%clk 0:00:12]}  h3 {[%clk 0:00:38]} 49. Kb5 {[%clk 0:00:13]}  h2 {[%clk 0:00:39]} 50. c4 {[%clk 0:00:14]}  h1=Q {[%clk 0:00:40]} 51. c5 {[%clk 0:00:14]}  Qb7+ {[%clk 0:00:41]} 52. Kc4 {[%clk 0:00:14]}  Kf4 {[%clk 0:00:41]} 53. a5 {[%clk 0:00:14]}  Ke5 {[%clk 0:00:41]} 0-1


[Site "https://www.chess.com"]

[Event "Titled Tuesday Blitz December 13 Early 2022"]
[White "Hirneise, Jens"]
[Black "Kuderinov, Kirill"]
[WhiteFideId "24614734"]
[BlackFideId "13701568"]
[WhiteElo "2345"]
[BlackElo "2459"]
[Result "1-0"]
[Round "05"]
[TimeControl "180+1"]
[Date "2022.12.14"]
[WhiteClock "0:00:10"]
[BlackClock "0:00:01"]

1. Nf3 {[%clk 0:02:24]}  Nf6 {[%clk 0:02:56]} 2. d4 {[%clk 0:02:25]}  e6 {[%clk 0:02:55]} 3. c4 {[%clk 0:02:25]}  Bb4+ {[%clk 0:02:48]} 4. Nbd2 {[%clk 0:02:25]}  O-O {[%clk 0:02:47]} 5. e3 {[%clk 0:02:25]}  d5 {[%clk 0:02:38]} 6. Qc2 {[%clk 0:02:25]}  b6 {[%clk 0:02:34]} 7. a3 {[%clk 0:02:20]}  Be7 {[%clk 0:02:33]} 8. Bd3 {[%clk 0:02:20]}  Bb7 {[%clk 0:02:31]} 9. O-O {[%clk 0:02:15]}  Nbd7 {[%clk 0:02:27]} 10. b3 {[%clk 0:02:01]}  c5 {[%clk 0:02:21]} 11. Bb2 {[%clk 0:01:59]}  Rc8 {[%clk 0:02:21]} 12. Rac1 {[%clk 0:01:48]}  Bd6 {[%clk 0:02:17]} 13. Qb1 {[%clk 0:01:46]}  Qe7 {[%clk 0:02:16]} 14. dxc5 {[%clk 0:01:33]}  Nxc5 {[%clk 0:01:54]} 15. Bxf6 {[%clk 0:01:32]}  gxf6 {[%clk 0:01:48]} 16. b4 {[%clk 0:01:19]}  Nxd3 {[%clk 0:01:45]} 17. Qxd3 {[%clk 0:01:20]}  dxc4 {[%clk 0:01:38]} 18. Rxc4 {[%clk 0:01:18]}  Rxc4 {[%clk 0:01:33]} 19. Qxc4 {[%clk 0:01:13]}  Rc8 {[%clk 0:01:30]} 20. Qh4 {[%clk 0:01:01]}  f5 {[%clk 0:01:25]} 21. Qh6 {[%clk 0:00:37]}  f6 {[%clk 0:01:20]} 22. Rd1 {[%clk 0:00:35]}  Kh8 {[%clk 0:00:57]} 23. Nf1 {[%clk 0:00:31]}  Bb8 {[%clk 0:00:35]} 24. Ng3 {[%clk 0:00:27]}  Rg8 {[%clk 0:00:36]} 25. Nh4 {[%clk 0:00:19]}  Qf7 {[%clk 0:00:31]} 26. Nh5 {[%clk 0:00:18]}  Be5 {[%clk 0:00:13]} 27. f4 {[%clk 0:00:15]}  Bb2 {[%clk 0:00:06]} 28. Rd2 {[%clk 0:00:15]}  Bc3 {[%clk 0:00:05]} 29. Rd3 {[%clk 0:00:16]}  Ba1 {[%clk 0:00:05]} 30. Rd1 {[%clk 0:00:13]}  Bc3 {[%clk 0:00:05]} 31. Rd3 {[%clk 0:00:13]}  Bxg2 {[%clk 0:00:06]} 32. Nxg2 {[%clk 0:00:11]}  Qb7 {[%clk 0:00:06]} 33. Ng3 {[%clk 0:00:10]}  Bb2 {[%clk 0:00:06]} 34. Rd2 {[%clk 0:00:10]}  Ba1 {[%clk 0:00:06]} 35. Rd1 {[%clk 0:00:10]}  Bc3 {[%clk 0:00:06]} 36. Qh5 {[%clk 0:00:10]}  Qc7 {[%clk 0:00:05]} 37. Qe2 {[%clk 0:00:11]}  e5 {[%clk 0:00:02]} 38. Rc1 {[%clk 0:00:11]}  exf4 {[%clk 0:00:02]} 39. Nxf4 {[%clk 0:00:12]}  Rc8 {[%clk 0:00:02]} 40. Qd3 {[%clk 0:00:12]}  Qe5 {[%clk 0:00:02]} 41. Ngh5 {[%clk 0:00:12]}  Rg8+ {[%clk 0:00:01]} 42. Ng3 {[%clk 0:00:11]}  Bb2 {[%clk 0:00:02]} 43. Qc2 {[%clk 0:00:11]}  Bxc1 {[%clk 0:00:02]} 44. Qxc1 {[%clk 0:00:11]}  Rd8 {[%clk 0:00:02]} 45. Qe1 {[%clk 0:00:11]}  Re8 {[%clk 0:00:03]} 46. Qf2 {[%clk 0:00:12]}  Rd8 {[%clk 0:00:03]} 47. Nge2 {[%clk 0:00:11]}  Qa1+ {[%clk 0:00:03]} 48. Kg2 {[%clk 0:00:12]}  Qe5 {[%clk 0:00:04]} 49. Qf3 {[%clk 0:00:11]}  Rg8+ {[%clk 0:00:05]} 50. Ng3 {[%clk 0:00:11]}  Qb2+ {[%clk 0:00:06]} 51. Kh3 {[%clk 0:00:12]}  Qe5 {[%clk 0:00:06]} 52. Nfh5 {[%clk 0:00:11]}  Rg5 {[%clk 0:00:06]} 53. Nf4 {[%clk 0:00:11]}  Rg8 {[%clk 0:00:06]} 54. Qc6 {[%clk 0:00:11]}  Re8 {[%clk 0:00:06]} 55. Qd7 {[%clk 0:00:11]}  Qe7 {[%clk 0:00:05]} 56. Qxf5 {[%clk 0:00:11]}  Rf8 {[%clk 0:00:05]} 57. Nfh5 {[%clk 0:00:11]}  Qxe3 {[%clk 0:00:03]} 58. Nxf6 {[%clk 0:00:11]}  Qh6+ {[%clk 0:00:03]} 59. Ngh5 {[%clk 0:00:11]}  Qg6 {[%clk 0:00:03]} 60. Qe5 {[%clk 0:00:10]}  Qd3+ {[%clk 0:00:01]} 61. Kh4 {[%clk 0:00:10]} 1-0


[Site "https://www.chess.com"]

[Event "Titled Tuesday Blitz December 13 Early 2022"]
[White "Hrabinska, Myroslava"]
[Black "Vianello, Enrico"]
[WhiteFideId "14109190"]
[BlackFideId "810738"]
[WhiteElo "2171"]
[BlackElo "2091"]
[Result "1-0"]
[Round "05"]
[TimeControl "180+1"]
[Date "2022.12.14"]
[WhiteClock "0:00:02"]
[BlackClock "0:00:03"]

1. e4 {[%clk 0:02:58]}  d6 {[%clk 0:02:59]} 2. d4 {[%clk 0:02:57]}  Nf6 {[%clk 0:03:00]} 3. Nc3 {[%clk 0:02:57]}  e5 {[%clk 0:03:00]} 4. dxe5 {[%clk 0:02:56]}  dxe5 {[%clk 0:03:01]} 5. Qxd8+ {[%clk 0:02:56]}  Kxd8 {[%clk 0:03:02]} 6. Bc4 {[%clk 0:02:55]}  Ke8 {[%clk 0:03:01]} 7. Nf3 {[%clk 0:02:55]}  Bd6 {[%clk 0:02:59]} 8. Be3 {[%clk 0:02:30]}  a6 {[%clk 0:02:58]} 9. a4 {[%clk 0:02:27]}  b6 {[%clk 0:02:56]} 10. O-O-O {[%clk 0:01:35]}  Nbd7 {[%clk 0:02:56]} 11. Nd5 {[%clk 0:01:21]}  Nxe4 {[%clk 0:02:34]} 12. Nxc7+ {[%clk 0:00:59]}  Bxc7 {[%clk 0:02:30]} 13. Bd5 {[%clk 0:00:59]}  Rb8 {[%clk 0:02:30]} 14. Bxe4 {[%clk 0:00:59]}  Bb7 {[%clk 0:02:24]} 15. Bxb7 {[%clk 0:00:55]}  Rxb7 {[%clk 0:02:25]} 16. Rd2 {[%clk 0:00:34]}  Ke7 {[%clk 0:02:16]} 17. Rhd1 {[%clk 0:00:33]}  Rd8 {[%clk 0:02:14]} 18. c4 {[%clk 0:00:26]}  f6 {[%clk 0:02:12]} 19. b3 {[%clk 0:00:25]}  a5 {[%clk 0:01:40]} 20. Kc2 {[%clk 0:00:24]}  Nb8 {[%clk 0:01:39]} 21. Rxd8 {[%clk 0:00:23]}  Bxd8 {[%clk 0:01:40]} 22. Rd5 {[%clk 0:00:21]}  Nc6 {[%clk 0:01:39]} 23. Bd2 {[%clk 0:00:19]}  Bc7 {[%clk 0:01:36]} 24. Bc3 {[%clk 0:00:19]}  Bd6 {[%clk 0:01:36]} 25. Nd2 {[%clk 0:00:18]}  Bb4 {[%clk 0:01:35]} 26. Ne4 {[%clk 0:00:17]}  Bxc3 {[%clk 0:01:30]} 27. Kxc3 {[%clk 0:00:17]}  h6 {[%clk 0:01:15]} 28. f3 {[%clk 0:00:17]}  Ke6 {[%clk 0:01:08]} 29. Rd6+ {[%clk 0:00:16]}  Ke7 {[%clk 0:01:09]} 30. Rxc6 {[%clk 0:00:17]}  f5 {[%clk 0:01:09]} 31. Nd2 {[%clk 0:00:16]}  Kd7 {[%clk 0:01:03]} 32. Rg6 {[%clk 0:00:15]}  Ke8 {[%clk 0:01:03]} 33. c5 {[%clk 0:00:15]}  bxc5 {[%clk 0:01:01]} 34. Nc4 {[%clk 0:00:16]}  Kf8 {[%clk 0:00:56]} 35. Nxe5 {[%clk 0:00:15]}  Re7 {[%clk 0:00:55]} 36. Nc4 {[%clk 0:00:14]}  Re2 {[%clk 0:00:55]} 37. h4 {[%clk 0:00:14]}  Kf7 {[%clk 0:00:55]} 38. Rc6 {[%clk 0:00:13]}  Rxg2 {[%clk 0:00:54]} 39. Rxc5 {[%clk 0:00:13]}  Rg3 {[%clk 0:00:54]} 40. Rxf5+ {[%clk 0:00:13]}  Ke6 {[%clk 0:00:53]} 41. Rf8 {[%clk 0:00:12]}  Rh3 {[%clk 0:00:51]} 42. Rf4 {[%clk 0:00:11]}  Rh1 {[%clk 0:00:41]} 43. Nxa5 {[%clk 0:00:10]}  Ke5 {[%clk 0:00:38]} 44. Rg4 {[%clk 0:00:10]}  Kf6 {[%clk 0:00:37]} 45. Nc4 {[%clk 0:00:10]}  g6 {[%clk 0:00:36]} 46. a5 {[%clk 0:00:11]}  Kf5 {[%clk 0:00:36]} 47. Kb4 {[%clk 0:00:10]}  Rh3 {[%clk 0:00:35]} 48. a6 {[%clk 0:00:09]}  Rh1 {[%clk 0:00:34]} 49. a7 {[%clk 0:00:08]}  Ra1 {[%clk 0:00:34]} 50. Na5 {[%clk 0:00:09]}  h5 {[%clk 0:00:33]} 51. Rg5+ {[%clk 0:00:07]}  Kf4 {[%clk 0:00:32]} 52. a8=Q {[%clk 0:00:08]}  Re1 {[%clk 0:00:28]} 53. Qd5 {[%clk 0:00:08]}  Ke3 {[%clk 0:00:25]} 54. Qd4+ {[%clk 0:00:08]}  Kxd4 {[%clk 0:00:24]} 55. Rxg6 {[%clk 0:00:09]}  Rh1 {[%clk 0:00:22]} 56. Rd6+ {[%clk 0:00:07]}  Ke5 {[%clk 0:00:21]} 57. Nc4+ {[%clk 0:00:07]}  Kf5 {[%clk 0:00:20]} 58. Rd5+ {[%clk 0:00:07]}  Kg6 {[%clk 0:00:20]} 59. f4 {[%clk 0:00:07]}  Rxh4 {[%clk 0:00:20]} 60. Rd6+ {[%clk 0:00:07]}  Kf5 {[%clk 0:00:18]} 61. Rd4 {[%clk 0:00:07]}  Rh1 {[%clk 0:00:12]} 62. Nd6+ {[%clk 0:00:07]}  Ke6 {[%clk 0:00:12]} 63. f5+ {[%clk 0:00:07]}  Ke5 {[%clk 0:00:12]} 64. Kc5 {[%clk 0:00:05]}  h4 {[%clk 0:00:08]} 65. Re4+ {[%clk 0:00:05]}  Kf6 {[%clk 0:00:07]} 66. b4 {[%clk 0:00:05]}  h3 {[%clk 0:00:07]} 67. Rh4 {[%clk 0:00:05]}  h2 {[%clk 0:00:06]} 68. Rh6+ {[%clk 0:00:05]}  Kg5 {[%clk 0:00:06]} 69. Rh8 {[%clk 0:00:05]}  Rc1+ {[%clk 0:00:06]} 70. Nc4 {[%clk 0:00:04]}  h1=Q {[%clk 0:00:06]} 71. Rxh1 {[%clk 0:00:05]}  Rxh1 {[%clk 0:00:06]} 72. b5 {[%clk 0:00:05]}  Kxf5 {[%clk 0:00:06]} 73. b6 {[%clk 0:00:03]}  Rb1 {[%clk 0:00:05]} 74. Nd6+ {[%clk 0:00:03]}  Ke6 {[%clk 0:00:05]} 75. Nb5 {[%clk 0:00:03]}  Kd7 {[%clk 0:00:03]} 76. b7 {[%clk 0:00:02]} 1-0


[Site "https://www.chess.com"]

[Event "Titled Tuesday Blitz December 13 Early 2022"]
[White "Kamsky, Gata"]
[Black "Goryachkina, Aleksandra"]
[WhiteFideId "2000024"]
[BlackFideId "4147103"]
[WhiteElo "2666"]
[BlackElo "2484"]
[Result "1-0"]
[Round "05"]
[TimeControl "180+1"]
[Date "2022.12.13"]
[WhiteClock "0:01:14"]
[BlackClock "0:00:06"]

1. d4 {[%clk 0:03:00]}  Nf6 {[%clk 0:02:35]} 2. Bf4 {[%clk 0:02:58]}  d5 {[%clk 0:02:33]} 3. e3 {[%clk 0:02:58]}  e6 {[%clk 0:02:33]} 4. Nf3 {[%clk 0:02:58]}  Bd6 {[%clk 0:02:34]} 5. Bxd6 {[%clk 0:02:58]}  Qxd6 {[%clk 0:02:33]} 6. c4 {[%clk 0:02:58]}  O-O {[%clk 0:02:28]} 7. Nc3 {[%clk 0:02:58]}  dxc4 {[%clk 0:02:26]} 8. Bxc4 {[%clk 0:02:57]}  a6 {[%clk 0:02:25]} 9. O-O {[%clk 0:02:47]}  Nbd7 {[%clk 0:02:24]} 10. Rc1 {[%clk 0:02:43]}  b5 {[%clk 0:02:21]} 11. Be2 {[%clk 0:02:40]}  Bb7 {[%clk 0:02:21]} 12. a3 {[%clk 0:02:40]}  Rfe8 {[%clk 0:02:15]} 13. b4 {[%clk 0:02:39]}  Rad8 {[%clk 0:02:15]} 14. Qb3 {[%clk 0:02:33]}  e5 {[%clk 0:02:00]} 15. Rfd1 {[%clk 0:02:30]}  e4 {[%clk 0:01:35]} 16. Ng5 {[%clk 0:02:20]}  Qe7 {[%clk 0:01:33]} 17. a4 {[%clk 0:02:19]}  h6 {[%clk 0:01:29]} 18. Nh3 {[%clk 0:02:18]}  bxa4 {[%clk 0:01:20]} 19. Nxa4 {[%clk 0:02:09]}  Nb6 {[%clk 0:01:19]} 20. Nf4 {[%clk 0:02:05]}  Kh7 {[%clk 0:01:10]} 21. Nc5 {[%clk 0:02:04]}  Bc8 {[%clk 0:01:07]} 22. Nxa6 {[%clk 0:02:01]}  g5 {[%clk 0:00:51]} 23. Rxc7 {[%clk 0:01:58]}  Rd7 {[%clk 0:00:51]} 24. Rxd7 {[%clk 0:01:51]}  Bxd7 {[%clk 0:00:51]} 25. Nh5 {[%clk 0:01:50]}  Nxh5 {[%clk 0:00:47]} 26. Bxh5 {[%clk 0:01:50]}  Be6 {[%clk 0:00:47]} 27. Qc2 {[%clk 0:01:43]}  Bd5 {[%clk 0:00:30]} 28. Qc7 {[%clk 0:01:33]}  Qf6 {[%clk 0:00:24]} 29. Nc5 {[%clk 0:01:31]}  Rc8 {[%clk 0:00:14]} 30. Qe5 {[%clk 0:01:31]}  Qxe5 {[%clk 0:00:13]} 31. dxe5 {[%clk 0:01:31]}  Ra8 {[%clk 0:00:13]} 32. h3 {[%clk 0:01:26]}  Kg7 {[%clk 0:00:13]} 33. Nd7 {[%clk 0:01:23]}  Nxd7 {[%clk 0:00:09]} 34. Rxd5 {[%clk 0:01:23]}  Ra7 {[%clk 0:00:09]} 35. b5 {[%clk 0:01:22]}  Kf8 {[%clk 0:00:08]} 36. Bg4 {[%clk 0:01:21]}  Nb6 {[%clk 0:00:08]} 37. Rd4 {[%clk 0:01:18]}  Ra5 {[%clk 0:00:07]} 38. Rb4 {[%clk 0:01:15]}  Ke7 {[%clk 0:00:07]} 39. Bf5 {[%clk 0:01:14]}  Nd5 {[%clk 0:00:07]} 40. Rb3 {[%clk 0:01:14]}  Ra1+ {[%clk 0:00:05]} 41. Kh2 {[%clk 0:01:14]}  Ra2 {[%clk 0:00:06]} 42. Bxe4 {[%clk 0:01:14]} 1-0


[Site "https://www.chess.com"]

[Event "Titled Tuesday Blitz December 13 Early 2022"]
[White "Keymer, Vincent"]
[Black "Ohanyan, Emin"]
[WhiteFideId "12940690"]
[BlackFideId "13312022"]
[WhiteElo "2600"]
[BlackElo "2352"]
[Result "1-0"]
[Round "05"]
[TimeControl "180+1"]
[Date "2022.12.13"]
[WhiteClock "0:01:44"]
[BlackClock "0:00:35"]

1. Nf3 {[%clk 0:02:59]}  d5 {[%clk 0:03:00]} 2. e3 {[%clk 0:02:59]}  Nf6 {[%clk 0:02:53]} 3. c4 {[%clk 0:02:59]}  e6 {[%clk 0:02:53]} 4. Nc3 {[%clk 0:02:59]}  c5 {[%clk 0:02:46]} 5. cxd5 {[%clk 0:02:59]}  exd5 {[%clk 0:02:41]} 6. Bb5+ {[%clk 0:02:58]}  Nc6 {[%clk 0:02:40]} 7. Ne5 {[%clk 0:02:58]}  Qc7 {[%clk 0:02:33]} 8. Qa4 {[%clk 0:02:57]}  Qxe5 {[%clk 0:02:11]} 9. Bxc6+ {[%clk 0:02:56]}  Bd7 {[%clk 0:02:11]} 10. Bxd7+ {[%clk 0:02:57]}  Nxd7 {[%clk 0:02:12]} 11. d3 {[%clk 0:02:57]}  a6 {[%clk 0:02:08]} 12. O-O {[%clk 0:02:51]}  O-O-O {[%clk 0:01:51]} 13. e4 {[%clk 0:02:03]}  Nb6 {[%clk 0:01:31]} 14. Qb3 {[%clk 0:02:02]}  Qe6 {[%clk 0:01:32]} 15. Bg5 {[%clk 0:01:54]}  f6 {[%clk 0:00:56]} 16. Bf4 {[%clk 0:01:47]}  c4 {[%clk 0:00:48]} 17. exd5 {[%clk 0:01:44]}  cxb3 {[%clk 0:00:43]} 18. dxe6 {[%clk 0:01:45]}  bxa2 {[%clk 0:00:35]} 19. Rfc1 {[%clk 0:01:44]} 1-0


[Site "https://www.chess.com"]

[Event "Titled Tuesday Blitz December 13 Early 2022"]
[White "Kirillov, Dmitry"]
[Black "Putri, Regita Desyari"]
[WhiteFideId "34180572"]
[BlackFideId "7109083"]
[WhiteElo "2111"]
[BlackElo "1930"]
[Result "1-0"]
[Round "05"]
[TimeControl "180+1"]
[Date "2022.12.14"]
[WhiteClock "0:00:48"]
[BlackClock "0:00:05"]

1. e4 {[%clk 0:03:00]}  e5 {[%clk 0:02:59]} 2. Nf3 {[%clk 0:03:00]}  Nc6 {[%clk 0:02:59]} 3. d4 {[%clk 0:03:01]}  exd4 {[%clk 0:03:00]} 4. c3 {[%clk 0:03:01]}  dxc3 {[%clk 0:02:59]} 5. Nxc3 {[%clk 0:03:02]}  d6 {[%clk 0:02:54]} 6. Bc4 {[%clk 0:03:03]}  Be7 {[%clk 0:02:51]} 7. Qb3 {[%clk 0:03:00]}  Na5 {[%clk 0:02:21]} 8. Bxf7+ {[%clk 0:03:00]}  Kf8 {[%clk 0:02:20]} 9. Qa4 {[%clk 0:03:00]}  Kxf7 {[%clk 0:02:11]} 10. Qxa5 {[%clk 0:03:00]}  c5 {[%clk 0:02:11]} 11. Qxd8 {[%clk 0:02:54]}  Bxd8 {[%clk 0:02:12]} 12. Bf4 {[%clk 0:02:55]}  Be7 {[%clk 0:01:59]} 13. O-O-O {[%clk 0:02:55]}  Bg4 {[%clk 0:01:54]} 14. Bxd6 {[%clk 0:02:53]}  Bxf3 {[%clk 0:01:53]} 15. gxf3 {[%clk 0:02:53]}  Nf6 {[%clk 0:01:49]} 16. Bxe7 {[%clk 0:02:50]}  Kxe7 {[%clk 0:01:50]} 17. Nd5+ {[%clk 0:02:51]}  Nxd5 {[%clk 0:01:49]} 18. Rxd5 {[%clk 0:02:52]}  Rac8 {[%clk 0:01:43]} 19. Rhd1 {[%clk 0:02:51]}  Rc7 {[%clk 0:01:44]} 20. R1d3 {[%clk 0:02:46]}  Rf8 {[%clk 0:01:43]} 21. Kd2 {[%clk 0:02:46]}  Rf6 {[%clk 0:01:41]} 22. Rh5 {[%clk 0:02:43]}  h6 {[%clk 0:01:40]} 23. Ke3 {[%clk 0:02:42]}  c4 {[%clk 0:01:37]} 24. Rc3 {[%clk 0:02:40]}  a6 {[%clk 0:01:31]} 25. a4 {[%clk 0:02:40]}  Rb6 {[%clk 0:01:29]} 26. Re5+ {[%clk 0:02:24]}  Kf7 {[%clk 0:01:27]} 27. Rc2 {[%clk 0:02:19]}  Rb3+ {[%clk 0:01:25]} 28. Kf4 {[%clk 0:02:12]}  Kg6 {[%clk 0:01:15]} 29. Rf5 {[%clk 0:01:50]}  b5 {[%clk 0:01:09]} 30. axb5 {[%clk 0:01:47]}  axb5 {[%clk 0:01:10]} 31. h4 {[%clk 0:01:44]}  b4 {[%clk 0:00:57]} 32. h5+ {[%clk 0:01:37]}  Kh7 {[%clk 0:00:57]} 33. Rb5 {[%clk 0:01:38]}  Rf7+ {[%clk 0:00:50]} 34. Rf5 {[%clk 0:01:37]}  Rc7 {[%clk 0:00:50]} 35. Kg4 {[%clk 0:01:00]}  g6 {[%clk 0:00:43]} 36. hxg6+ {[%clk 0:00:55]}  Kxg6 {[%clk 0:00:44]} 37. Rb5 {[%clk 0:00:55]}  c3 {[%clk 0:00:18]} 38. bxc3 {[%clk 0:00:52]}  Rbxc3 {[%clk 0:00:19]} 39. Rb2 {[%clk 0:00:51]}  Rf7 {[%clk 0:00:16]} 40. f4 {[%clk 0:00:50]}  h5+ {[%clk 0:00:14]} 41. Rxh5 {[%clk 0:00:48]}  Rxf4+ {[%clk 0:00:06]} 42. Kxf4 {[%clk 0:00:49]}  Kxh5 {[%clk 0:00:05]} 43. Rxb4 {[%clk 0:00:50]}  Kg6 {[%clk 0:00:05]} 44. f3 {[%clk 0:00:49]}  Kf6 {[%clk 0:00:05]} 45. Rb6+ {[%clk 0:00:48]}  Ke7 {[%clk 0:00:06]} 46. e5 {[%clk 0:00:48]}  Rc8 {[%clk 0:00:03]} 47. Ke4 {[%clk 0:00:47]}  Rf8 {[%clk 0:00:04]} 48. f4 {[%clk 0:00:47]}  Rc8 {[%clk 0:00:04]} 49. Rb7+ {[%clk 0:00:47]}  Ke6 {[%clk 0:00:05]} 50. f5# {[%clk 0:00:48]} 1-0


[Site "https://www.chess.com"]